bitfinex/quotes_ETHUSD_20250114
["timestamp","ask_amount","ask_price","bid_price","bid_amount"]
[1736879159950,3.4558472,3224.5,3223.7,0.7956]
[1736879160401,3.10162,3224.2,3223.7,0.7956]
[1736879160775,3.10138,3224.4,3223.7,0.7956]
[1736879162682,0.34559472,3224.4,3223.7,0.7956]
[1736879163514,0.0441,3224.4,3223.2,0.61051479]
[1736879163701,3.1019,3223.9,3222.8,0.7502]
[1736879163886,3.1019,3223.9,3223.1,0.7502]
[1736879164907,2.94438525,3224.2,3223.1,0.7502]
[1736879165076,3.10168,3224.1,3223.1,3.85279]
[1736879165407,3.10168,3224.1,3223.4,0.7502]
[1736879165774,3.10175,3224.0,3223.4,0.7502]
[1736879167578,3.14548,3224.4,3223.4,0.7502]
[1736879167579,3.10185,3223.9,3223.4,0.7502]
[1736879167776,0.03877552,3223.8,3223.2,0.7502]
[1736879167982,2.94438525,3223.6,3222.3,0.7502]
[1736879168203,3.10249,3223.3,3222.3,4.62331792]
[1736879168412,3.10249,3223.3,3222.4,6.71305197]
[1736879168579,3.10249,3223.3,3222.5,0.7502]
[1736879170131,3.10263,3223.1,3222.5,0.7502]
[1736879171414,0.189,3223.5,3222.5,0.7502]
[1736879171619,0.50233852,3223.5,3222.5,0.7502]
[1736879171821,3.10253,3223.2,3222.5,0.7502]
[1736879171994,3.10265,3223.1,3222.5,0.7502]
[1736879172397,3.10246,3223.3,3222.5,0.7502]
[1736879172997,3.10246,3223.3,3222.5,3.85337]
[1736879173193,3.29125,3223.5,3222.6,4.40328]
[1736879173608,0.189,3223.5,3222.6,1.3002]
[1736879173813,3.10242,3223.3,3222.6,1.3002]
[1736879174017,3.29126,3223.5,3222.6,1.3002]
[1736879174315,3.29126,3223.5,3222.7,0.7502]
[1736879174687,3.10233,3223.4,3222.7,0.7502]
[1736879175721,0.189,3223.5,3222.8,0.8175]
[1736879176119,0.22778148,3223.5,3222.8,0.8175]
[1736879176308,3.10257,3223.2,3222.3,0.8175]
[1736879176513,3.10257,3223.2,3222.4,3.8175]
[1736879177102,3.10262,3223.1,3222.4,0.8175]
[1736879177317,3.10262,3223.1,3222.4,1.26199415]
[1736879178291,3.10243,3223.3,3222.5,0.8175]
[1736879178618,3.10251,3223.2,3222.5,0.8175]
[1736879179528,3.29127,3223.5,3222.5,0.8175]
[1736879179726,3.1026,3223.2,3222.5,0.8175]
[1736879179904,0.189,3223.5,3222.5,0.8175]
[1736879180103,0.189,3223.5,3222.6,0.43652642]
[1736879180625,3.29125,3223.5,3222.7,0.8175]
[1736879180827,3.10209,3223.7,3222.8,3.9203]
[1736879181001,0.189,3223.9,3223.0,3.10269]
[1736879181196,0.189,3224.2,3223.3,0.8175]
[1736879181396,3.29059,3224.2,3223.3,3.10233]
[1736879181600,3.29059,3224.2,3223.5,0.8175]
[1736879181996,3.10168,3224.1,3223.5,0.8175]
[1736879182844,3.10147,3224.3,3223.5,0.8175]
[1736879183058,0.1655672,3224.5,3223.9,3.10182]
[1736879183369,0.1655672,3224.5,3224.0,0.8175]
[1736879183495,0.1655672,3224.5,3224.0,3.91923]
[1736879183855,0.1655672,3224.5,3224.4,0.8276]
[1736879184933,0.1655672,3224.5,3223.7,0.8276]
[1736879185449,3.2668272,3224.5,3223.8,0.55]
[1736879185748,3.10144,3224.3,3223.7,0.8276]
[1736879186115,0.1655672,3224.5,3223.7,0.8276]
[1736879186313,0.32667672,3224.4,3223.7,0.8276]
[1736879186505,3.2668472,3224.5,3223.7,0.8276]
[1736879186939,3.10139,3224.4,3223.7,0.8276]
[1736879187997,0.1655672,3224.5,3223.7,0.8276]
[1736879188226,0.1655672,3224.5,3223.8,0.55]
[1736879188431,0.1655672,3224.5,3223.9,0.8276]
[1736879188640,0.1655672,3224.5,3223.9,1.275557]
[1736879188900,2.94438525,3224.3,3223.4,0.8276]
[1736879189129,3.10263,3223.1,3222.6,0.8276]
[1736879189440,6.23585525,3223.3,3222.6,0.8276]
[1736879189598,3.10298,3222.8,3222.4,3.84415922]
[1736879189917,3.10271,3223.0,3222.3,0.8276]
[1736879191049,3.10281,3222.9,3222.3,0.8276]
[1736879191348,3.10299,3222.7,3222.3,0.8276]
[1736879191722,4.03639053,3223.2,3222.3,0.8276]
[1736879191939,3.10289,3222.8,3222.3,0.8276]
[1736879193335,3.14177963,3222.7,3222.3,0.8276]
[1736879193648,3.10321,3222.5,3222.0,0.8276]
[1736879195152,0.0387947,3222.8,3222.0,0.8276]
[1736879195297,3.10341,3222.3,3222.0,0.8276]
[1736879195504,3.10322,3222.5,3222.0,0.8276]
[1736879195915,3.10333,3222.4,3222.0,0.8276]
[1736879196148,3.10337,3222.3,3221.6,0.8276]
[1736879198354,3.1035,3222.2,3221.6,0.8276]
[1736879198551,2.98318248,3222.1,3221.6,0.8276]
[1736879198851,2.98318248,3222.1,3221.2,0.8276]
[1736879198852,3.10395,3221.7,3221.2,0.8276]
[1736879199032,0.03880351,3221.6,3221.2,0.8276]
[1736879199231,3.10395,3221.7,3221.2,0.8276]
[1736879199622,0.29831825,3222.0,3221.0,0.8276]
[1736879199954,0.29831825,3222.0,3221.0,1.5816642]
[1736879199955,3.10383,3221.9,3221.0,1.5816642]
[1736879200122,3.10389,3221.8,3221.0,1.5816642]
[1736879200758,3.10389,3221.8,3221.0,0.8276]
[1736879201335,3.10406,3221.6,3221.0,0.8276]
[1736879201583,3.14296351,3221.5,3221.0,0.8276]
[1736879201780,3.10399,3221.7,3221.0,0.8276]
[1736879202564,3.40206825,3222.0,3221.0,0.8276]
[1736879202766,3.10375,3222.0,3221.0,0.8276]
[1736879202925,2.94438525,3222.2,3221.2,0.8276]
[1736879202926,3.29255,3222.2,3221.2,0.8276]
[1736879203129,3.29255,3222.2,3221.2,3.932]
[1736879203353,3.10357,3222.1,3221.2,0.8276]
[1736879203540,0.189,3222.2,3221.2,0.8276]
[1736879203541,2.94438525,3221.9,3221.2,0.8276]
[1736879203736,0.33712316,3221.8,3221.2,0.8276]
[1736879203973,3.10405,3221.6,3221.2,0.8276]
[1736879204180,3.10431,3221.4,3220.3,3.10525]
[1736879204467,3.10436,3221.3,3220.4,0.7572]
[1736879204632,3.10436,3221.3,3220.6,0.55]
[1736879205039,3.10436,3221.3,3220.5,3.386245]
[1736879205544,3.10419,3221.5,3220.5,3.386245]
[1736879205876,2.9831953,3221.6,3220.5,3.386245]
[1736879206169,3.10438,3221.3,3220.5,3.386245]
[1736879207244,3.10438,3221.3,3220.6,0.78603969]
[1736879207567,2.94438525,3221.6,3220.7,0.8101]
[1736879207870,3.10399,3221.7,3220.7,3.91499]
[1736879208378,0.33712545,3221.8,3220.7,0.8101]
[1736879208542,3.10413,3221.6,3220.7,3.8101]
[1736879208733,3.10413,3221.6,3220.8,0.45961397]
[1736879209150,3.10415,3221.5,3220.8,0.45961397]
[1736879209952,3.104,3221.7,3220.8,0.45961397]
[1736879210438,3.10421,3221.5,3220.8,0.45961397]
[1736879210637,3.10421,3221.5,3220.7,0.8101]
[1736879211069,0.33712545,3221.8,3220.7,0.8101]
[1736879211269,3.10431,3221.4,3220.7,0.8101]
[1736879212592,3.1046,3221.1,3220.7,0.8101]
[1736879213139,0.03881185,3221.2,3220.7,0.8101]
[1736879213373,3.10466,3221.0,3220.7,0.8101]
[1736879214259,0.03881181,3220.9,3220.7,0.8101]
[1736879214472,3.10478,3220.9,3220.1,3.0]
[1736879214678,3.10478,3220.9,3220.2,0.8101]
[1736879216391,3.10481,3220.8,3220.2,0.8101]
[1736879217102,3.14330401,3221.2,3220.2,0.8101]
[1736879217313,3.10466,3221.0,3220.2,0.8101]
[1736879217464,0.189,3221.3,3220.5,0.8101]
[1736879217868,3.10447,3221.2,3220.5,0.8101]
[1736879222105,0.189,3221.3,3220.5,0.8101]
[1736879222316,3.29335,3221.3,3220.5,0.8101]
[1736879223019,3.10419,3221.5,3220.5,0.8101]
[1736879223170,0.189,3221.3,3220.5,0.8101]
[1736879223372,0.189,3221.3,3220.5,3.9152]
[1736879223674,3.10445,3221.2,3220.6,0.39152]
[1736879223878,3.10445,3221.2,3220.5,0.8101]
[1736879224511,0.189,3221.3,3220.5,0.8101]
[1736879224802,0.189,3221.3,3220.5,3.91512]
[1736879225596,3.29334,3221.3,3220.5,3.91512]
[1736879225909,3.29334,3221.3,3220.5,0.8101]
[1736879226066,3.14323799,3221.2,3220.6,0.391529]
[1736879226266,0.189,3221.3,3220.5,0.8101]
[1736879226472,0.189,3221.3,3220.5,3.9152]
[1736879226673,3.14775,3222.1,3220.6,1.37832215]
[1736879226899,3.10384,3221.9,3221.0,3.1046]
[1736879227107,3.10384,3221.9,3221.2,0.7982]
[1736879228842,0.189,3222.0,3221.2,0.7982]
[1736879229043,3.10362,3222.1,3221.2,0.7982]
[1736879229208,3.29262,3222.1,3221.2,3.90261]
[1736879229534,3.10366,3222.0,3221.2,0.7982]
[1736879229738,3.10376,3221.9,3221.2,0.7982]
[1736879230298,3.10376,3221.9,3221.2,1.188476]
[1736879230494,0.189,3222.1,3221.3,0.7982]
[1736879230752,3.2924,3222.3,3221.4,3.90236]
[1736879230910,3.10325,3222.5,3221.6,0.7982]
[1736879231236,3.10357,3222.1,3221.6,1.17802]
[1736879231396,0.03880183,3222.0,3221.6,0.7982]
[1736879231600,3.10389,3221.8,3221.6,0.7982]
[1736879232398,3.10389,3221.8,3221.0,3.0]
[1736879232608,3.10422,3221.5,3221.1,0.7982]
[1736879232802,3.10425,3221.4,3221.1,0.7982]
[1736879233007,3.10365,3222.1,3221.1,0.7982]
[1736879233340,3.29217,3222.6,3221.6,0.7982]
[1736879233557,0.03879692,3222.5,3221.6,0.7982]
[1736879233863,0.03879692,3222.5,3220.8,2.94438525]
[1736879233864,3.10395,3221.7,3220.8,3.10481]
[1736879234010,3.10395,3221.7,3220.9,7.59780692]
[1736879234212,0.03880307,3221.6,3220.9,1.49309692]
[1736879234412,0.03880307,3221.6,3220.9,4.49309692]
[1736879234767,0.03880311,3221.9,3220.9,5.20452158]
[1736879235312,0.03880311,3221.9,3221.0,3.0]
[1736879235628,3.2929,3221.8,3221.0,0.82045216]
[1736879238234,3.10405,3221.6,3220.9,0.7982]
[1736879238445,3.14815,3221.6,3220.9,0.7982]
[1736879238648,3.10416,3221.5,3220.9,0.7982]
[1736879238857,3.10433,3221.3,3220.9,0.7982]
[1736879239571,3.2932,3221.5,3220.9,0.7982]
[1736879239712,3.92136853,3221.5,3220.9,0.7982]
[1736879240113,3.10427,3221.4,3220.9,0.7982]
[1736879241230,0.0441,3222.3,3220.9,0.7982]
[1736879241410,0.189,3222.1,3221.1,0.7951]
[1736879241765,0.189,3222.1,3221.2,3.37951]
[1736879242431,3.10386,3221.8,3221.1,0.7951]
[1736879242671,3.10395,3221.7,3221.1,0.7951]
[1736879243652,3.10406,3221.6,3221.1,0.7951]
[1736879244819,3.1039,3221.8,3221.1,0.7951]
[1736879245230,3.14264341,3221.9,3221.1,0.7951]
[1736879245428,3.10384,3221.9,3221.1,1.185071]
[1736879246333,0.19,3222.1,3221.2,0.7951]
[1736879246532,0.19,3222.1,3221.4,3.10422]
[1736879246774,3.2933,3222.4,3221.5,3.89921]
[1736879247746,0.19,3222.4,3221.5,0.7951]
[1736879247951,3.10341,3222.3,3221.5,0.7951]
[1736879248128,3.14227729,3222.2,3221.5,0.7951]
[1736879248456,3.10348,3222.2,3221.5,0.7951]
[1736879248657,0.0441,3222.7,3221.5,3.73948525]
[1736879248953,3.10292,3222.8,3222.0,0.7951]
[1736879249116,0.19,3222.9,3222.0,0.7951]
[1736879249311,0.0441,3222.5,3221.6,0.7951]
[1736879249515,3.1035,3222.2,3221.6,0.7951]
[1736879249741,0.0387985,3222.1,3221.6,0.7951]
[1736879250167,3.1035,3222.2,3221.6,0.7951]
[1736879250649,0.0828985,3222.5,3221.6,0.7951]
[1736879250650,3.10374,3222.0,3221.6,0.7951]
[1736879250811,3.29378,3221.9,3221.6,0.7951]
[1736879251018,0.19,3221.9,3221.6,0.7951]
[1736879252518,0.19,3222.7,3221.6,0.7951]
[1736879252946,0.03879723,3222.6,3221.6,0.7951]
[1736879253461,3.10329,3222.4,3221.6,0.7951]
[1736879254439,3.29329,3222.4,3221.6,0.7951]
[1736879254637,3.62649872,3222.4,3221.6,0.7951]
[1736879255586,3.29329,3222.4,3221.6,0.7951]
[1736879255738,0.19,3222.4,3221.6,0.7951]
[1736879256734,3.33207722,3222.4,3221.6,0.7951]
[1736879256939,0.0441,3222.3,3221.6,0.7951]
[1736879257155,3.10375,3222.0,3221.6,0.7951]
[1736879257387,3.414135,3221.9,3221.3,0.7951]
[1736879257588,3.10394,3221.8,3221.3,0.7951]
[1736879257943,0.0441,3221.6,3220.8,0.7951]
[1736879258153,3.10434,3221.3,3220.8,0.7951]
[1736879258365,0.19,3221.5,3220.8,0.7951]
[1736879258566,3.29419,3221.5,3220.8,0.7951]
[1736879259675,3.10433,3221.3,3220.8,0.7951]
[1736879260054,3.29419,3221.5,3220.8,0.7951]
[1736879260369,0.03880961,3221.4,3220.8,0.7951]
[1736879260579,3.1044,3221.3,3220.8,0.7951]
[1736879260741,0.8725091,3221.5,3220.8,0.7951]
[1736879261141,3.1044,3221.3,3220.8,0.7951]
[1736879261455,0.8725091,3221.5,3220.8,0.7951]
[1736879261658,0.69209744,3221.4,3220.8,0.7951]
[1736879262344,3.10444,3221.2,3220.8,0.7951]
[1736879265144,3.84051744,3221.4,3220.8,0.7951]
[1736879265473,3.10439,3221.3,3220.8,0.7951]
[1736879265677,3.10443,3221.2,3220.8,0.7951]
[1736879266051,3.14324097,3221.2,3220.8,0.7951]
[1736879266277,0.03881097,3221.2,3220.8,0.7951]
[1736879266458,3.10453,3221.1,3220.5,0.7746]
[1736879266659,3.10453,3221.1,3220.5,1.15206]
[1736879268493,3.10479,3220.9,3220.5,0.7746]
[1736879269160,3.10483,3220.8,3220.5,0.7746]
[1736879269345,3.10483,3220.8,3220.1,0.7746]
[1736879269547,3.14836,3221.4,3220.1,0.7746]
[1736879269776,3.10463,3221.0,3220.2,3.0]
[1736879269975,0.03881359,3221.3,3220.4,0.7746]
[1736879270367,3.10453,3221.1,3220.4,0.7746]
[1736879271088,3.29453,3221.1,3220.4,0.7746]
[1736879271859,0.19,3221.1,3220.4,0.7746]
[1736879272184,0.19,3221.1,3220.6,0.7746]
[1736879272389,0.19,3221.1,3220.7,0.38797]
[1736879272565,0.19,3221.1,3220.6,0.7746]
[1736879276395,3.10492,3220.7,3220.1,0.7746]
[1736879276597,3.14383703,3220.6,3220.1,0.7746]
[1736879276763,3.10527,3220.4,3220.1,0.7746]
[1736879276959,3.10495,3220.7,3220.1,0.7746]
[1736879277167,3.10476,3220.9,3220.1,3.88008]
[1736879277389,3.1045,3221.2,3220.3,0.7746]
[1736879277588,0.192,3221.1,3220.5,3.1051]
[1736879277864,0.192,3221.1,3220.7,0.7746]
[1736879278299,0.0441,3221.8,3220.7,0.7746]
[1736879278484,0.192,3221.8,3220.8,0.7746]
[1736879278795,0.192,3221.8,3221.1,0.7746]
[1736879278997,0.192,3222.6,3221.6,0.7746]
[1736879279202,3.10232,3223.4,3221.3,0.55]
[1736879279203,0.0441,3223.1,3222.0,0.7746]
[1736879279498,3.10287,3222.9,3222.0,3.87824]
[1736879279803,3.10233,3223.4,3222.2,0.7746]
[1736879279804,0.192,3223.0,3222.2,0.7746]
[1736879280000,3.10327,3222.4,3221.6,0.7746]
[1736879280297,6.04746525,3222.6,3221.6,0.7746]
[1736879280497,3.10348,3222.2,3221.6,0.7746]
[1736879280697,3.1033,3222.4,3221.6,0.7746]
[1736879281195,3.1025,3223.2,3221.9,0.7937]
[1736879281504,0.03879242,3223.1,3221.9,0.7937]
[1736879281698,3.10321,3222.5,3221.9,0.7937]
[1736879283104,3.14209698,3222.4,3221.9,0.7937]
[1736879283486,3.1033,3222.4,3221.9,0.7937]
[1736879285569,3.14209697,3222.4,3221.9,0.7937]
[1736879286624,3.14191698,3222.6,3221.9,0.7937]
[1736879286791,3.77081268,3222.6,3221.9,0.7937]
[1736879286971,3.10325,3222.5,3221.9,0.7937]
[1736879287302,3.14207697,3222.4,3221.9,0.7937]
[1736879287620,3.10328,3222.4,3221.9,0.7937]
[1736879287973,3.14207697,3222.4,3221.9,0.7937]
[1736879288180,0.37709727,3222.4,3221.9,0.7937]
[1736879288988,0.41589423,3222.4,3221.9,0.7937]
[1736879289882,0.37709727,3222.4,3221.9,0.7937]
[1736879292110,0.41589421,3222.4,3221.9,0.7937]
[1736879292617,3.10353,3222.2,3221.9,0.7937]
[1736879292909,3.10375,3222.0,3221.4,0.8303]
[1736879293113,0.310353,3222.1,3221.4,0.8303]
[1736879293317,3.10377,3221.9,3221.4,0.8303]
[1736879293698,3.10386,3221.8,3221.4,0.8303]
[1736879293904,3.14266296,3221.8,3221.4,0.8303]
[1736879294103,3.10395,3221.7,3221.4,0.8303]
[1736879294286,3.10406,3221.6,3221.2,1.9303]
[1736879296511,3.10415,3221.5,3221.2,1.9303]
[1736879296719,0.3142663,3221.8,3221.2,1.9303]
[1736879296883,3.10401,3221.7,3221.2,1.9303]
[1736879297821,3.10408,3221.6,3221.2,1.9303]
[1736879298293,3.1042,3221.5,3221.2,1.9303]
[1736879298494,0.3142663,3221.8,3221.2,1.9303]
[1736879298681,3.74024416,3221.7,3221.2,1.9303]
[1736879299097,3.10408,3221.6,3221.2,1.9303]
[1736879301429,0.63624416,3221.7,3221.2,1.9303]
[1736879301630,3.10423,3221.5,3221.2,1.9303]
[1736879302198,0.0388063,3221.4,3221.2,1.9303]
[1736879302400,3.10423,3221.5,3221.2,1.9303]
[1736879306943,3.74025416,3221.7,3221.3,0.7926]
[1736879307924,3.10407,3221.6,3221.3,0.7926]
[1736879312404,3.0,3223.1,3221.3,0.98186]
[1736879312603,2.238,3223.7,3221.7,3.0]
[1736879312604,3.10269,3223.0,3221.7,3.0]
[1736879312840,3.10296,3222.8,3221.9,0.7926]
[1736879313021,0.83062017,3223.2,3222.0,0.7926]
[1736879313341,3.10276,3223.0,3222.1,0.7926]
[1736879313506,0.39333802,3223.0,3222.1,0.7926]
[1736879313703,3.10286,3222.9,3222.1,0.7926]
[1736879313926,3.1029,3222.8,3222.1,0.7926]
[1736879314532,3.10272,3223.0,3222.1,0.7926]
[1736879314731,6.04670525,3223.4,3222.4,3.1032]
[1736879314732,3.29734,3223.4,3222.4,3.1032]
[1736879314929,3.10243,3223.3,3222.5,0.7926]
[1736879315324,3.10243,3223.3,3222.5,1.18218]
[1736879316011,0.0387866,3223.2,3222.5,0.7926]
[1736879316217,3.10272,3223.0,3222.5,0.7926]
[1736879317549,0.195,3223.1,3222.5,0.7926]
[1736879317850,3.2976,3223.1,3222.5,0.7926]
[1736879322024,3.10271,3223.0,3222.5,0.7926]
[1736879322217,3.14150007,3223.0,3222.5,0.7926]
[1736879323040,0.33365001,3223.0,3222.5,0.7926]
[1736879323255,2.94438525,3222.8,3221.6,0.7926]
[1736879323419,0.23379779,3222.7,3221.6,0.7926]
[1736879323620,3.10322,3222.5,3221.6,0.7926]
[1736879323819,3.10322,3222.5,3221.6,3.7926]
[1736879324250,3.10322,3222.5,3221.7,0.7926]
[1736879324429,3.29803,3222.7,3221.8,0.7926]
[1736879324832,3.10313,3222.6,3221.8,0.7926]
[1736879325744,3.10293,3222.8,3221.9,0.7899]
[1736879325942,3.10285,3222.9,3222.1,0.7899]
[1736879326116,0.0387936,3223.0,3222.1,0.7899]
[1736879326317,0.55233896,3223.0,3222.1,0.7899]
[1736879327154,3.0,3223.3,3221.5,0.62834776]
[1736879327155,3.10221,3223.6,3222.6,3.10308]
[1736879327328,0.2391,3223.9,3222.8,0.7899]
[1736879327529,3.10197,3223.8,3222.8,0.7899]
[1736879327728,0.195,3223.9,3223.0,0.7899]
[1736879327929,0.195,3224.1,3223.0,3.0]
[1736879328135,0.195,3224.1,3223.3,0.7899]
[1736879328537,3.29669,3224.1,3223.3,0.7899]
[1736879329087,3.10169,3224.1,3223.3,0.7899]
[1736879329432,3.2668172,3224.5,3223.6,3.0]
[1736879329649,0.1655672,3224.5,3223.7,0.7899]
[1736879329877,0.1655672,3224.5,3223.7,0.68921]
[1736879330077,0.1655672,3224.5,3223.8,0.7899]
[1736879330562,3.2668372,3224.5,3223.8,0.7899]
[1736879330871,0.1655672,3224.5,3223.8,0.81994923]
[1736879331050,0.1655672,3224.5,3223.8,3.89175]
[1736879331246,0.1655672,3224.5,3224.0,0.7899]
[1736879337175,0.1655672,3224.5,3223.9,3.0]
[1736879337176,0.1655672,3224.5,3224.4,3.10135]
[1736879337381,0.1655672,3224.5,3224.2,0.7899]
[1736879339606,3.2668472,3224.5,3224.2,0.7899]
[1736879339907,0.1655672,3224.5,3224.2,0.7899]
[1736879340050,3.10152,3224.3,3223.9,0.7899]
[1736879340253,0.194,3224.4,3223.9,0.7899]
[1736879340758,3.10158,3224.2,3223.9,0.7899]
[1736879340958,3.10173,3224.1,3223.9,0.7899]
[1736879341381,3.10148,3224.3,3223.9,0.7899]
[1736879342181,0.83451924,3224.4,3223.9,0.7899]
[1736879342390,0.194,3224.4,3223.9,0.7899]
[1736879342696,3.29535,3224.4,3223.9,0.7899]
[1736879343190,3.10145,3224.3,3223.9,0.7899]
[1736879343507,3.10166,3224.1,3223.9,0.7899]
[1736879344289,2.98848525,3224.3,3223.1,0.7674]
[1736879344498,3.10194,3223.8,3223.1,0.7674]
[1736879344664,0.03877946,3224.2,3223.1,0.7674]
[1736879345287,6.04611525,3224.0,3223.1,0.7674]
[1736879345459,0.64339349,3223.9,3223.1,0.7674]
[1736879346568,3.10209,3223.7,3223.1,0.7674]
[1736879347387,3.10222,3223.5,3223.1,0.7674]
[1736879347588,3.10234,3223.4,3223.1,0.7674]
[1736879347778,3.14112209,3223.4,3223.1,0.7674]
[1736879348369,3.43585221,3223.4,3223.1,0.7674]
[1736879349372,0.64871152,3223.9,3223.1,0.7674]
[1736879349586,0.194,3224.0,3223.1,0.7674]
[1736879349793,0.0441,3224.2,3222.8,3.0]
[1736879349794,3.10162,3224.2,3223.2,3.10247]
[1736879349979,0.1655672,3224.5,3223.5,0.7674]
[1736879350187,0.194,3224.4,3223.5,0.7674]
[1736879350497,3.10161,3224.2,3223.5,0.7674]
[1736879350810,0.194,3224.4,3223.6,3.10207]
[1736879351097,0.194,3224.4,3223.8,0.7674]
[1736879351467,0.03877108,3224.3,3223.8,0.7674]
[1736879351666,3.10151,3224.3,3223.8,0.7674]
[1736879351996,3.10174,3224.0,3223.8,0.7674]
[1736879352760,0.310174,3224.0,3223.8,0.7674]
[1736879352995,3.10183,3223.9,3223.1,3.7674]
[1736879353299,3.10176,3224.0,3223.1,6.87]
[1736879353684,0.03877781,3223.9,3223.1,0.7674]
[1736879353873,3.10212,3223.6,3223.1,0.7674]
[1736879354076,3.10198,3223.8,3223.1,0.7674]
[1736879354696,0.03878034,3223.8,3223.1,0.7674]
[1736879354908,3.40026656,3223.8,3223.1,0.7674]
[1736879355204,3.10214,3223.6,3223.1,0.7674]
[1736879355966,0.03878037,3223.5,3223.1,0.7674]
[1736879357067,3.10243,3223.3,3223.1,0.7674]
[1736879357274,3.29627,3223.5,3223.1,0.7674]
[1736879357501,0.03878342,3223.4,3223.1,0.7674]
[1736879357809,3.10248,3223.3,3223.1,0.7674]
[1736879359216,1.13214992,3223.5,3223.1,0.7674]
[1736879359412,1.13214992,3223.5,3221.5,4.49296057]
[1736879359413,2.98317014,3223.4,3222.3,0.8325]
[1736879359629,3.10269,3223.1,3222.3,0.8325]
[1736879359810,2.94438525,3223.4,3222.3,0.8325]
[1736879360123,3.10277,3223.0,3222.3,0.8325]
[1736879361514,0.03878971,3223.0,3222.3,0.8325]
[1736879361815,3.103,3222.7,3222.3,0.8325]
[1736879362015,3.10309,3222.6,3222.3,0.8325]
[1736879362312,2.94438525,3223.1,3222.3,0.8325]
[1736879362511,2.94438525,3223.4,3222.3,0.8325]
[1736879362715,3.10279,3222.9,3222.3,0.8325]
[1736879363292,3.10272,3223.0,3222.3,0.8325]
[1736879363482,3.10212,3223.6,3222.4,0.8325]
[1736879363914,3.1025,3223.2,3222.5,0.8325]
[1736879364108,3.10262,3223.1,3222.5,0.8325]
[1736879366611,2.94438525,3223.4,3222.5,0.8325]
[1736879366612,0.194,3223.4,3222.6,0.8325]
[1736879366937,3.10241,3223.3,3222.6,0.8325]
[1736879367117,3.10241,3223.3,3222.7,0.393567]
[1736879368415,3.10241,3223.3,3222.6,0.8325]
[1736879370416,3.10223,3223.5,3222.6,3.10307]
[1736879370612,3.10232,3223.4,3222.7,0.8325]
[1736879372423,0.0441,3224.2,3223.0,0.8325]
[1736879372632,3.10151,3224.3,3223.4,0.8325]
[1736879372860,3.2668672,3224.5,3223.6,0.8325]
[1736879373000,3.4608672,3224.5,3223.7,0.8325]
[1736879373718,3.4608372,3224.5,3223.7,0.8325]
[1736879373917,3.10136,3224.4,3223.7,0.8325]
[1736879375134,3.10148,3224.3,3223.7,0.8325]
[1736879376335,0.3595672,3224.5,3223.7,0.8325]
[1736879376818,3.10138,3224.4,3223.7,0.8325]
[1736879377314,0.1655672,3224.5,3223.8,0.8216]
[1736879377882,0.3595672,3224.5,3223.8,0.8216]
[1736879378147,0.3595672,3224.5,3223.9,0.8216]
[1736879378648,0.03876996,3224.4,3223.9,0.8216]
[1736879378949,0.3595672,3224.5,3223.9,0.8216]
[1736879379145,0.69383972,3224.5,3223.9,0.8216]
[1736879379351,3.79513972,3224.5,3223.9,0.8216]
[1736879379549,0.49983972,3224.5,3223.9,0.8216]
[1736879379737,3.10135,3224.4,3223.9,0.8216]
[1736879379943,0.49983972,3224.5,3223.9,0.8216]
[1736879380326,0.1655672,3224.5,3223.9,0.8216]
[1736879381137,0.03877221,3224.4,3223.9,0.8216]
[1736879381338,0.03877221,3224.4,3223.0,0.8216]
[1736879381339,3.10191,3223.9,3223.0,0.8216]
[1736879381656,3.10191,3223.9,3223.1,0.8216]
[1736879381856,3.13838525,3224.4,3223.3,0.8216]
[1736879382161,3.10176,3224.0,3223.3,0.8216]
[1736879382322,0.03877834,3223.9,3223.3,0.8216]
[1736879382523,3.10176,3224.0,3223.3,0.8216]
[1736879382754,0.03877834,3223.9,3223.3,0.8216]
[1736879382943,3.10176,3224.0,3223.3,0.8216]
[1736879384054,0.03877833,3224.3,3223.3,0.8216]
[1736879384270,0.66663458,3224.2,3223.3,0.8216]
[1736879384574,3.10174,3224.0,3223.3,0.8216]
[1736879384722,3.29535,3224.4,3223.1,0.8216]
[1736879385263,3.29535,3224.4,3223.2,0.8216]
[1736879385560,0.194,3224.4,3223.2,0.8216]
[1736879385758,0.194,3224.4,3223.7,0.8156]
[1736879386727,3.10136,3224.4,3223.7,0.8156]
[1736879387829,0.3595672,3224.5,3223.8,0.8156]
[1736879388652,0.1655672,3224.5,3223.8,0.8156]
[1736879389443,0.1655672,3224.5,3223.8,3.91752]
[1736879389663,0.1655672,3224.5,3223.8,0.8156]
[1736879390032,0.1655672,3224.5,3224.0,3.10172]
[1736879390227,0.1655672,3224.5,3223.9,0.8156]
[1736879390436,0.1655672,3224.5,3224.1,0.8156]
[1736879390650,0.1655672,3224.5,3224.2,3.0]
[1736879390855,0.1655672,3224.5,3224.3,0.8156]
[1736879394593,0.1655672,3224.5,3224.3,1.207312]
[1736879396157,0.1655672,3224.5,3224.4,6.87905]
[1736879397275,0.1655672,3224.5,3224.4,0.7777]
[1736879399678,0.1655672,3224.5,3224.0,0.7777]
[1736879399881,3.2668972,3224.5,3224.0,0.7777]
[1736879400216,0.80624071,3224.5,3224.0,0.7777]
[1736879400358,3.15405245,3224.5,3223.7,0.7777]
[1736879400556,0.2096672,3224.5,3223.7,0.7777]
[1736879400768,0.1655672,3224.5,3223.7,3.87968]
[1736879400970,0.03877204,3224.4,3223.7,0.7777]
[1736879401163,2.94438525,3223.9,3223.2,0.8308]
[1736879401406,2.94438525,3223.5,3222.9,0.8308]
[1736879401624,0.03878595,3223.4,3222.7,3.85110906]
[1736879401762,3.10255,3223.2,3222.6,0.8308]